Cogmind - Beta 13 @@@ ROGUE MODE // 2024.03.24 @ 21:46:41 Player: Crud Result: Destroyed by G-47 Trooper with Particle Gun Performance ------------- Evolutions (0) 0 Regions Visited (1) 200 Robots Destroyed (7) 35 Value Destroyed (179) 179 Prototype IDs (0) 0 Alien Tech Used (0) 0 Bonus (0) 0 TOTAL SCORE: 414 Bonus ------- None Cogmind --------- Core Integrity 0/250 Matter 325/400 Energy 100/100 System Corruption 0% Temperature Cool (9) Movement Walking (400) Ox4 Location -10/Materials Parts ------- > --- POWER (1) -------- (None) > --- PROPULSION (2) --- Aluminum Leg Aluminum Leg > --- UTILITY (2) ------ Huge Storage Unit Medium Matter Pod > --- WEAPON (2) ------- Particle Gun > --- INVENTORY (25) --- Aluminum Leg High-capacity Storage Unit Power Shielding Medium Laser Beam Cannon Grenade Launcher Peak State ------------ > --- POWER ------------ Light Ion Engine > --- PROPULSION ------- Aluminum Leg Aluminum Leg > --- UTILITY ---------- Medium Matter Pod Power Shielding > --- WEAPON ----------- Particle Gun Light Assault Rifle > --- INVENTORY -------- Aluminum Leg Aluminum Leg High-capacity Storage Unit Medium Laser Grenade Launcher [Rating: 8] Favorites ----------- Power Light Ion Engine Engine Light Ion Engine Propulsion Aluminum Leg Leg Aluminum Leg Utility Medium Matter Pod Storage Medium Matter Pod Protection Power Shielding Weapon Small Laser Energy Gun Small Laser Ballistic Gun Light Assault Rifle Build | -11 -10 ------- Run | Yrd Mat Slots Evolved . | . . Power . | . . Propulsion . | . . Utility . | . . Weapon . | . . Parts Attached 14 | 5 9 Power 3 | 1 2 Engine 3 | 1 2 Core . | . . Reactor . | . . Propulsion 4 | 2 2 Treads . | . . Leg 4 | 2 2 Wheel . | . . Hover . | . . Flight . | . . Utility 3 | . 3 Device . | . . Storage 2 | . 2 Processor . | . . Hackware . | . . Protection 1 | . 1 Artifact . | . . Weapon 4 | 2 2 Energy Gun 3 | 2 1 Energy Cannon . | . . Ballistic Gun 1 | . 1 Ballistic Cannon . | . . Launcher . | . . Special Weapon . | . . Impact Weapon . | . . Slashing Weapon . | . . Piercing Weapon . | . . Special Melee Weapon . | . . Unidentified Prototypes . | . . Parts Lost 3 | . 3 Power 1 | . 1 Propulsion 1 | . 1 Utility . | . . Weapon 1 | . 1 Highest Loss Streak 2 | . 2 To Critical Strikes . | . . Average Slot Usage (%) 87 | . 87 Engine 12 | . 12 Leg 27 | . 27 Storage 12 | . 12 Protection 7 | . 7 Energy Gun 16 | . 16 Ballistic Gun 9 | . 9 Naked Turns . | . . Heaviest Build 91 | 5 91 Greatest Support 20 | 20 20 Greatest Overweight (x) 8 | . 8 Average Overweight (x) . | . . Largest Inventory Capacity 25 | 5 25 Average Capacity 9 | 5 10 Most Carried 7 | 5 7 Average Carried 4 | 2 5 Final Capacity 25 | 5 25 Final Carried 6 | 3 6 Class Distribution -------------------- 77% | Mutant 22% | Scavenger-Mutant Dominant Class ---------------- Mutant | -10/Materials Resources | -11 -10 ----------- Run | Yrd Mat Matter Collected 370 | 250 120 Remotely . | . . Salvage Created 218 | 46 172 Parts 11 | . 11 Haulers Intercepted . | . . Recyclers Shooed . | . . Parts Field Recycled . | . . Retrieved Matter . | . . Parts Self-Destructed . | . . Prevented . | . . Kills | -11 -10 ------- Run | Yrd Mat Combat Hostiles Destroyed 7 | 1 6 Guns 7 | 1 6 Classes Destroyed 2 | 1 1 Swarmer 3 | . 3 Grunt 4 | 1 3 Best Kill Streak 3 | 1 3 Combat Bots Only 3 | 1 3 Max Kills in Single Turn 1 | 1 1 Gunslinging . | . . Exploded . | . . Melee . | . . Uniques/NPCs Destroyed . | . . Combat | -11 -10 -------- Run | Yrd Mat Hostile Shots Fired 69 | 4 65 Missed 13 | 1 12 Damage Taken 731 | 33 698 Core 252 | . 252 Absorbed by Shields . | . . Redirected to Shielding 9 | . 9 Core Remaining (%) 100 | 100 . Volleys Fired 31 | 3 28 Largest 2 | 2 2 Hottest 80 | 80 80 Shots Fired 62 | 6 56 Gun 62 | 6 56 Cannon . | . . Launcher . | . . Special . | . . Kinetic 20 | . 20 Thermal 42 | 6 36 Explosive . | . . Electromagnetic . | . . Robot Hit Streak 5 | 5 5 Robot Miss Streak 3 | . 3 Penetration Max . | . . Secondary Targets 1 | . 1 Max Gunslinging Chain 1 | . 1 Shots Hit Robots 38 | 5 33 Core Hits 15 | 2 13 Critical Kills . | . . Critical Parts Destroyed . | . . Critical Strikes . | . . Melee Attacks . | . . Impact . | . . Slashing . | . . Piercing . | . . Sneak Attacks . | . . Combat Hostiles . | . . Follow-up Attacks . | . . Damage Inflicted 381 | 55 326 Guns 381 | 55 326 Cannons . | . . Explosions . | . . Melee . | . . Ramming . | . . Kinetic 88 | . 88 Thermal 293 | 55 238 Explosive . | . . Electromagnetic . | . . Impact . | . . Slashing . | . . Piercing . | . . Highest Corruption . | . . Average Corruption . | . . Corruption Purged . | . . Corruption Blocked . | . . Overload Shots . | . . Overflow Damage . | . . Projectiles . | . . Explosions . | . . Melee . | . . Knockbacks . | . . Impact . | . . Kinetic . | . . Secondary . | . . Self-Inflicted Damage . | . . Shots . | . . Rammed . | . . Targets Rammed . | . . Kicked . | . . Crushed . | . . Highest Temperature 165 | 86 165 Average Temperature 52 | 44 53 Received Heat Transfer 426 | 18 408 Siege Activations . | . . Robots Corrupted . | . . Combat Hostiles . | . . Parts Fried . | . . Impact Corruptions . | . . Robots Melted . | . . Combat Hostiles . | . . Parts Melted . | . . Heat Transferred 675 | 125 550 Parts Sabotaged . | . . Parts Stolen . | . . Parts Stripped . | . . Power Chain Reactions . | . . Alert | -11 -10 ------- Run | Yrd Mat Peak Influence 200 | 20 200 Initial 13 | . 13 Average 100 | 2 119 Maximum Alert Level 1 | . 1 Low Security (%) 78 | 100 74 Level 1 21 | . 25 Level 2 . | . . Level 3 . | . . Level 4 . | . . Level 5 . | . . High Security . | . . Max Security . | . . Squads Dispatched 1 | . 1 Investigation . | . . Extermination . | . . Reinforcement 1 | . 1 Assault . | . . Garrison . | . . Intercept . | . . Searches Triggered . | . . Construction Impeded . | . . Haulers Reinforced . | . . Active Scanning Responses . | . . Cargo Convoy Interrupts . | . . Stealth | -11 -10 --------- Run | Yrd Mat Distress Signals . | . . Communications Jammed . | . . Distress Signals . | . . Times Spotted 15 | 1 14 Peak Tracking Total 3 | 1 3 Tactical Retreats 1 | . 1 Traps | -11 -10 ------- Run | Yrd Mat Traps Triggered . | . . Indirectly . | . . Trap Hack Attempts . | . . Triggered . | . . Disarmed . | . . Reprogrammed . | . . Reused . | . . Traps Extracted . | . . Installed . | . . Triggered . | . . Machines | -11 -10 ---------- Run | Yrd Mat Machines Disabled . | . . Max in Single Turn . | . . Machines Repaired . | . . Machines Dismantled . | . . Machines Sabotaged . | . . Overloaded Fab Kills . | . . Hacking | -11 -10 --------- Run | Yrd Mat Machines Accessed 1 | . 1 Terminals 1 | . 1 Fabricators . | . . Repair Stations . | . . Recycling Units . | . . Scanalyzers . | . . Garrison Access . | . . Total Hacks 2 | . 2 Successful 2 | . 2 Failed . | . . Catastrophic . | . . Database Lockouts . | . . Manual 1 | . 1 Terminals 2 | . 2 Fabricators . | . . Repair Stations . | . . Recycling Units . | . . Scanalyzers . | . . Garrison Access . | . . Terminal Hacks 1 | . 1 Branch Access Points 1 | . 1 Fabricator Hacks . | . . Repair Station Hacks . | . . Recycling Unit Hacks . | . . Scanalyzer . | . . Garrison Access Hacks . | . . Unauthorized Hacks 1 | . 1 Terminals 1 | . 1 Botnet 1 | . 1 Fabricators . | . . Repair Stations . | . . Recycling Units . | . . Scanalyzers . | . . Garrison Access . | . . Data Cores Recovered . | . . Used . | . . Hacking Detections 1 | . 1 Full Trace Events . | . . Feedback Events . | . . Feedback Blocked . | . . Robot Schematics Acquired . | . . Robots Built . | . . Authchips . | . . Time . | . . Total Robot Build Rating . | . . Part Schematics Acquired . | . . Parts Built . | . . Authchips . | . . Time . | . . Total Part Build Rating . | . . Parts Repaired . | . . Time . | . . Parts Recycled . | . . Recycled Matter . | . . Retrieved Matter . | . . Retrieved Components . | . . Parts Scanalyzed . | . . Part Schematics Acquired . | . . Parts Damaged . | . . Bothacking | -11 -10 ------------ Run | Yrd Mat Used RIF Installer . | . . Robots Hacked . | . . Non-combat . | . . Combat . | . . Robot Hacks Applied . | . . Relay Couplers Released . | . . Fabnet Peak Effective % . | . . Robots Rewired . | . . Allies Hacked . | . . Hacks Repelled . | . . Allies | -11 -10 -------- Run | Yrd Mat Total Allies . | . . Largest Group . | . . Highest-Rated Group . | . . Highest-Rated Ally . | . . Total Orders . | . . Ally Attacks . | . . Total Damage . | . . Kills . | . . Allies Corrupted . | . . Allies Melted . | . . Intel | -11 -10 ------- Run | Yrd Mat Robot Analysis Total . | . . Derelict Logs Recovered . | . . Drone Launches . | . . Drone Recoveries . | . . Exploration | -11 -10 ------------- Run | Yrd Mat Turns Passed 557 | 93 464 Spaces Moved 285 | 69 216 Core 16 | 16 . Treads . | . . Legs 269 | 53 216 Wheels . | . . Hover . | . . Flight . | . . Fastest Speed 50 | 50 120 Average Speed 148 | 103 162 Slowest Speed 680 | 120 680 Overloaded Moves . | . . Propulsion Burnouts . | . . Robots Hopped . | . . Cave-ins Triggered . | . . Exploration Rate (%) 26 | 5 48 Regions Visited 1 Branch Regions . Pre-discovered Areas . | . . Known Exits Taken . | . . Unknown Exits Taken 1 | 1 . Scrap Searched . | . . Spaces Dug . | . . Terrain Destroyed . | . . Melee . | . . Projectile . | . . AOE . | . . Terrain Rammed . | . . Walls Destroyed . | . . Machines Disabled . | . . Actions | -11 -10 --------- Run | Yrd Mat Total 363 | 84 279 Wait 10 | . 10 Move 284 | 68 216 Hop . | . . Pick Up 15 | 8 7 Fast Attach 4 | . 4 Attach 6 | 5 1 Detach . | . . Swap 4 | . 4 Drop 9 | . 9 Fire 31 | 3 28 Melee . | . . Ram . | . . Kick . | . . Crush . | . . Escape Stasis . | . . Rewire . | . . Trap . | . . Miscellaneous . | . . Route ------- -11/Scrapyard -10/Materials (discovered 3 exits: [*Mat] / *Min x2) History --------- Turn | Location | Event 2 | -11/Scrapyard | Met Revision 17 69 | -11/Scrapyard | Discovered new exit (range 8) 94 | -11/Scrapyard | Entered Materials 125 | -10/Materials | Identified exit to Mines 308 | -10/Materials | Build established: Mutant 324 | -10/Materials | Discovered new exit (range 9) 480 | -10/Materials | Core integrity fell below 50% 532 | -10/Materials | Core integrity fell below 20% 558 | -10/Materials | Destroyed by G-47 Trooper with Particle Gun Last Messages --------------- 00324_ EXIT=FOUND 00364_ G-47 Trooper destroyed. 00372_ G-34 Mercenary destroyed. 00376_ Acquired 47 matter. 00379_ Dropped Sml. Laser. 00381_ Acquired 48 matter. 00385_ Dropped Aluminum Leg. 00388_ Dropped Lgt. Ion Engine. 00423_ Dropped Power Shielding. 00423_ Acquired Huge Storage Unit. 00437_ Acquired Beam Cannon. 00454_ Acquired Power Shielding. 00459_ Connecting with Terminal... 00481_ Critical hit (Burn: +37). 00489_ Lgt. Assault Rifle destroyed. 00491_ Ion Engine destroyed. 00497_ Critical hit (Burn: +37). 00529_ Aluminum Leg destroyed. 00529_ Critical hit (Burn: +37). 00542_ R-06 Scavenger collects Sml. Laser. Map ----- +----------------------------------------------------+ | | | | | | | | | | | ??????????????###########???????? | | ??????????????# """ #???????? | | ??????????????# "T" #???????? | | ??????????????# #???????? | | ??????????????# #???????? | | ????####????#######+##########??? | | ????# #??? | | ????# ????################ #??? | | ???? #??????????????????# #??? | | ????# #??????????????????# #??? | | ????# #??????????????????# #??? | | ????# #??????????#####???# #??? | | ????# #??????????# #???# #??? | | ????# +??????????# < #???# #??? | | ????# #??????????# #???# #??? | | ???## ##?????????# #####g#### | | ???# * ########### ## # | | ???# # ## ## !! # | | ?# + """ ## ## !! # | | ??# # """ # # # | | ?# # """ # *#@ # | | ??### ###! / =+ """ # | | ?????# #?# """ # # """ # | | ???### ### """ # # """ # | | ???# # """ ####### w # | | ???# # #?????# # | | ???# > ##########?????# # | | ???# #??????????????######### | | ???# #??????????????????????? | | ???## ##??????????????????????? | | ????# #???????????????????????? | | ????# #???????????????????????? | | ????# #???????????????????????? | | ???## ##??????????????????????? | | #### #??????????????????????? | | #??????????????????????? | | #??????????????????????? | | #??????????????????????? | | #### #??????????????????????? | | ???###+###??????????????????????? | | ????????????????????????????????? | | ????????????????????????????????? | | ????????????????????????????????? | | ????????????????????????????????? | | ????????????????????????????????? | +----------------------------------------------------+ Best States ------------- Heat Dissipation 25 Energy Generation 10 Energy Capacity 250 Matter Stores 335 Matter Capacity 400 Sight Range 16 Terrain Scan Density 10 Power Shielding 33 Evasion (%) 55 Item Schematics ----------------- None Robot Schematics ------------------ None Fabricated ------------ Nothing Alien Tech Used ----------------- None Achievements -------------- None Challenges ------------ None Game ------ Seed CoolingInsulationPerforator Manual? 0 Play Time 00:12:42 Cumulative 33.2 hours Start 2024.03.24 @ 21:33:11 End 2024.03.24 @ 21:46:41 Sessions 1 Manual Loads 0 Difficulty Rogue Special Mode None Game No. 37 Rogue 37 Adventurer 0 Explorer 0 Win Type - Total 0 Types 0/0/0/0/0/0/0/0/0 Lore% 32 Gallery% 35 Achievement% 28 Wizard Run 0 Options --------- Layout 1 ASCII 0 Keyboard 0 Movement Arrows Keybinds 0 Fullscreen 1 Font 16/SmallcapsGlow Map View 50x40 Zoom Use 55% Tactical HUD 1 Map Filters NONE Filters NONE Steam SD RUN: 74651f79-8949-4211-b7ef-b2ac4d4107fb